Workbook

Sheet Index
B1: ='Input | General'!$B$1 -> Endeavour Energy 2019-24 Draft decision - Capital expenditure sharing scheme model
B2: Index
C4: Model index
C6: Sheet Name | D6: Sheet Description
C7: Input | General | D7: Inputs NSP name, regulatory years for the prior and forecast regulatory control period etc.
C8: Input | Inflation and Disc Rate | D8: Inputs the inflation and discount rate
C9: Input | Reported Capex | D9: Inputs the reported capital expenditure from the prior regulatory control period as well as the AER's forecast etc.
C10: Calc | CESS Revenue Increments | D10: Calculates the CESS payments from the prior regulatory control period
C11: Output | Models | D11: Outputs the CESS revenue increments needed as a post tax revenue model input
C12: Lookup | Tables | D12: Includes the lookup tables used within the CESS model.
C14: End

Sheet Input | General
B1: =$D$6&" "&$D$8&" "&D7&" - "&"Capital expenditure sharing scheme model" -> Endeavour Energy 2019-24 Draft decision - Capital expenditure sharing scheme model | G1: Key: | H1: Input | I1: Internal Link
B2: Input | General
B4: Input | General
C6: NSP Name | D6: Endeavour Energy
C7: Determination stage | D7: Draft decision
C8: Determination years | D8: 2019-24
C10: Regulatory control period details
D11: Year 1 | E11: Year 2 | F11: Year 3 | G11: Year 4 | H11: Year 5
C12: Regulatory control period CESS applied in (regulatory years) | D12: 2014-15 | E12: 2015-16 | F12: 2016-17 | G12: 2017-18 | H12: 2018-19
C13: CESS to apply to this year's expenditure (Yes/No) | D13: No | E13: Yes | F13: Yes | G13: Yes | H13: Yes
C14: Actual or estimate year | D14: Actual | E14: Actual | F14: Actual | G14: Estimate | H14: Estimate
D16: Year 1 | E16: Year 2 | F16: Year 3 | G16: Year 4 | H16: Year 5
C17: Regulatory control period CESS revenue increment applied in (regulatory years) | D17: 2019-20 | E17: 2020-21 | F17: 2021-22 | G17: 2022-23 | H17: 2023-24
C18: Regulatory control period prior to CESS applied in (regulatory years) | D18: 2009-10 | E18: 2010-11 | F18: 2011-12 | G18: 2012-13 | H18: 2013-14
B20: End

Sheet Input | Inflation and Disc Rate
B1: ='Input | General'!$B$1 -> Endeavour Energy 2019-24 Draft decision - Capital expenditure sharing scheme model | H1: Key: | I1: Input | J1: Internal Link
C2: Input | Inflation and Discount rate
C4: Input | Inflation
D6: Source | E6: Unit
F7: ='Lookup | Tables'!$E$27 -> 2013-14 | G7: ='Lookup | Tables'!$E$28 -> 2014-15 | H7: ='Lookup | Tables'!$E$29 -> 2015-16 | I7: ='Lookup | Tables'!$E$30 -> 2016-17 | J7: ='Lookup | Tables'!$E$31 -> 2017-18 | K7: ='Lookup | Tables'!$E$32 -> 2018-19 | L7: ='Lookup | Tables'!$E$33 -> 2019-20 | M7: ='Lookup | Tables'!$E$34 -> 2020-21 | N7: ='Lookup | Tables'!$E$35 -> 2021-22 | O7: ='Lookup | Tables'!$E$36 -> 2022-23 | P7: ='Lookup | Tables'!$E$37 -> 2023-24
C8: Actual CPI Inflation Rate | D8: TNSP | E8: Per cent | G8: 0.02487922705 | H8: 0.01508366722 | I8: 0.01276990945 | J8: 0.01948647409 | K8: 0.01963852233
C9: Forecast CPI Inflation Rate | D9: TNSP | E9: Per cent | L9: 0.01931669846 | M9: 0.02456486791 | N9: 0.025 | O9: 0.025 | P9: 0.025
C10: ="CPI Index (base year "&$F$7&")" -> CPI Index (base year 2013-14) | D10: TNSP | E10: Index | F10: 1 | G10: =IF(G7<>"",(F10*(1+G8)),"") -> 1.024879227 | H10: =IF(H7<>"",(G10*(1+H8)),"") -> 1.040338164 | I10: =IF(I7<>"",(H10*(1+I8)),"") -> 1.053623188 | J10: =IF(J7<>"",(I10*(1+J8)),"") -> 1.074154589 | K10: =IF(K7<>"",(J10*(1+K8)),"") -> 1.095249398 | L10: =IF(L7<>"",(K10*(1+L9)),"") -> 1.116406001 | M10: =IF(M7<>"",(L10*(1+M9)),"") -> 1.143830367 | N10: =IF(N7<>"",(M10*(1+N9)),"") -> 1.172426126 | O10: =IF(O7<>"",(N10*(1+O9)),"") -> 1.201736779 | P10: =IF(P7<>"",(O10*(1+P9)),"") -> 1.231780198
C13: Actual CPI Inflation Rate | D13: AER | E13: Per cent | G13: =G8 -> 0.02487922705 | H13: =H8 -> 0.01508366722 | I13: 0.01276990945 | J13: 0.01948647409 | K13: 0.01963852233
C14: Forecast CPI Inflation Rate | D14: AER | E14: Per cent | L14: =L9 -> 0.01931669846 | M14: =M9 -> 0.02456486791 | N14: 0.025 | O14: 0.025 | P14: 0.025
C15: ="CPI Index (base year "&F7&")" -> CPI Index (base year 2013-14) | D15: AER | E15: Index | F15: 1 | G15: =IF(G7<>"",(F15*(1+G13)),"") -> 1.024879227 | H15: =IF(H7<>"",(G15*(1+H13)),"") -> 1.040338164 | I15: =IF(I7<>"",(H15*(1+I13)),"") -> 1.053623188 | J15: =IF(J7<>"",(I15*(1+J13)),"") -> 1.074154589 | K15: =IF(K7<>"",(J15*(1+K13)),"") -> 1.095249398 | L15: =IF(L7<>"",(K15*(1+L14)),"") -> 1.116406001 | M15: =IF(M7<>"",(L15*(1+M14)),"") -> 1.143830367 | N15: =IF(N7<>"",(M15*(1+N14)),"") -> 1.172426126 | O15: =IF(O7<>"",(N15*(1+O14)),"") -> 1.201736779 | P15: =IF(P7<>"",(O15*(1+P14)),"") -> 1.231780198
C17: Input | Discount rate
D19: Source | E19: Unit | G19: ='Lookup | Tables'!$E$28 -> 2014-15 | H19: ='Lookup | Tables'!$E$29 -> 2015-16 | I19: ='Lookup | Tables'!$E$30 -> 2016-17 | J19: ='Lookup | Tables'!$E$31 -> 2017-18 | K19: ='Lookup | Tables'!$E$32 -> 2018-19 | L19: ='Lookup | Tables'!$E$33 -> 2019-20 | M19: ='Lookup | Tables'!$E$34 -> 2020-21 | N19: ='Lookup | Tables'!$E$35 -> 2021-22 | O19: ='Lookup | Tables'!$E$36 -> 2022-23 | P19: ='Lookup | Tables'!$E$37 -> 2023-24
C20: Real Vanilla WACC | D20: AER | E20: Per cent | G20: 0.04225401876 | H20: 0.04163547694 | I20: 0.04076103328 | J20: 0.03986023347 | K20: 0.03882796604 | L20: =K20 -> 0.03882796604 | M20: =L20 -> 0.03882796604 | N20: 0.03882796604 | O20: 0.03882796604 | P20: 0.03882796604
C22: Nominal Vanilla WACC (fixed, real, time varying) | D22: Calculated | E22: Per cent | G22: =IF(AND(G8<>"",G20<>""),((1+G20)*(1+G8)-1),"") -> 0.06818449314 | H22: =IF(AND(H13<>"",H20<>""),((1+H20)*(1+H13)-1),"") -> 0.05734715984 | I22: =IF(AND(I13<>"",I20<>""),((1+I20)*(1+I13)-1),"") -> 0.05405145743 | J22: =IF(AND(J13<>"",J20<>""),((1+J20)*(1+J13)-1),"") -> 0.06012344297 | K22: =IF(AND(K13<>"",K20<>""),((1+K20)*(1+K13)-1),"") -> 0.05922901225 | L22: =IF(AND(L14<>"",L20<>""),((1+L20)*(1+L14)-1),"") -> 0.05889469262 | M22: =IF(AND(M14<>"",M20<>""),((1+M20)*(1+M14)-1),"") -> 0.0643466378 | N22: =IF(AND(N14<>"",N20<>""),((1+N20)*(1+N14)-1),"") -> 0.06479866519 | O22: =IF(AND(O14<>"",O20<>""),((1+O20)*(1+O14)-1),"") -> 0.06479866519 | P22: =IF(AND(P14<>"",P20<>""),((1+P20)*(1+P14)-1),"") -> 0.06479866519
B24: End

Sheet Input | Reported Capex
B1: ='Input | General'!$B$1 -> Endeavour Energy 2019-24 Draft decision - Capital expenditure sharing scheme model | I1: Key: | J1: Input | K1: Internal Link
B2: Input | Capex
B4: Input | Capex Allowance
D6: Source | E6: Unit | F6: Basis | H6: n/a | I6: 2015-16 | J6: 2016-17 | K6: 2017-18 | L6: 2018-19
C8: Total capex allowance | D8: AER | E8: $millions | F8: 2013-14 | I8: 334.8999507 | J8: 282.9946142 | K8: 274.8144051 | L8: 262.5686541
C9: Total excludable capex | D9: AER | E9: $millions | F9: 2013-14 | I9: 0 | J9: 0 | K9: 0 | L9: 0
C11: Total capex allowance applicable to CESS | D11: Calculated | E11: $millions | F11: 2013-14 | H11: =IF(H6="", "", H8-H9) -> 0 | I11: =IF(I6="", "", I8-I9) -> 334.8999507 | J11: =IF(J6="", "", J8-J9) -> 282.9946142 | K11: 274.8144051 | L11: 262.5686541
B13: Input | Actual / Estimate Capex
D15: Source | E15: Unit | F15: Basis | H15: n/a | I15: 2015-16 | J15: 2016-17 | K15: 2017-18 | L15: 2018-19
C17: Total capex | D17: AER | E17: $millions | F17: nominal | I17: 212.0521464 | J17: 187.9498439 | K17: 338.6881483 | L17: 397.6296621
C18: Total excludable capex | D18: AER | E18: $millions | F18: nominal | I18: 1.603373429 | J18: -2.246564288 | K18: 0 | L18: 0
C20: Total actual capex applicable to CESS | D20: Calculated | E20: $millions | F20: nominal | H20: =IF(H15="", "", H17-H18) -> 0 | I20: =IF(I15="", "", I17-I18) -> 210.448773 | J20: =IF(J15="", "", J17-J18) -> 190.1964082 | K20: =IF(K15="", "", K17-K18) -> 338.6881483 | L20: =IF(L15="", "", L17-L18) -> 397.6296621
B22: Input | Capex Deferred to following regulatory period
H24: ='Input | General'!D17 -> 2019-20 | I24: ='Input | General'!E17 -> 2020-21 | J24: ='Input | General'!F17 -> 2021-22 | K24: ='Input | General'!G17 -> 2022-23 | L24: ='Input | General'!H17 -> 2023-24
C26: Capex deferred and re-proposed | D26: TNSP | E26: $millions | F26: nominal | H26: 0 | I26: 0 | J26: 0 | K26: 0 | L26: 0
C27: Capex deferred and re-proposed | D27: Calculated | E27: $millions | F27: 2013-14 | H27: =IF(H26<>"",H26/('Input | Inflation and Disc Rate'!K10*(1+'Input | Inflation and Disc Rate'!L9)^0.5),"") -> 0 | I27: =IF(I26<>"",I26/('Input | Inflation and Disc Rate'!L10*(1+'Input | Inflation and Disc Rate'!M9)^0.5),"") -> 0 | J27: =IF(J26<>"",J26/('Input | Inflation and Disc Rate'!M10*(1+'Input | Inflation and Disc Rate'!N9)^0.5),"") -> 0 | K27: =IF(K26<>"",K26/('Input | Inflation and Disc Rate'!N10*(1+'Input | Inflation and Disc Rate'!O9)^0.5),"") -> 0 | L27: =IF(L26<>"",L26/('Input | Inflation and Disc Rate'!O10*(1+'Input | Inflation and Disc Rate'!P9)^0.5),"") -> 0
C28: Capex deferred and re-proposed | D28: AER | E28: $millions | F28: nominal | H28: =IF(H26<>"",H27*'Input | Inflation and Disc Rate'!K15*(1+'Input | Inflation and Disc Rate'!L14)^0.5,"") -> 0 | I28: =IF(I26<>"",I27*'Input | Inflation and Disc Rate'!L15*(1+'Input | Inflation and Disc Rate'!M14)^0.5,"") -> 0 | J28: =IF(J26<>"",J27*'Input | Inflation and Disc Rate'!M15*(1+'Input | Inflation and Disc Rate'!N14)^0.5,"") -> 0 | K28: =IF(K26<>"",K27*'Input | Inflation and Disc Rate'!N15*(1+'Input | Inflation and Disc Rate'!O14)^0.5,"") -> 0 | L28: =IF(L26<>"",L27*'Input | Inflation and Disc Rate'!O15*(1+'Input | Inflation and Disc Rate'!P14)^0.5,"") -> 0
B30: End

Sheet Calc | CESS Revenue Increments
B1: ='Input | General'!$B$1 -> Endeavour Energy 2019-24 Draft decision - Capital expenditure sharing scheme model | K1: Key: | L1: Input | M1: Internal Link
B2: Input | CESS Payments
B4: Calc | NPV of CESS payments
C6: Regulatory period 1
C7: Year | D7: n/a | E7: 2015-16 | F7: 2016-17 | G7: 2017-18 | H7: 2018-19
C8: Discount rate: | E8: ='Input | Inflation and Disc Rate'!H22 -> 0.05734715984 | F8: ='Input | Inflation and Disc Rate'!I22 -> 0.05405145743 | G8: ='Input | Inflation and Disc Rate'!J22 -> 0.06012344297 | H8: ='Input | Inflation and Disc Rate'!K22 -> 0.05922901225
C9: Capex allowance | E9: ='Input | Reported Capex'!I$11*'Input | Inflation and Disc Rate'!H$15*(1+'Input | Inflation and Disc Rate'!H$20)^0.5 -> 355.5883269 | F9: ='Input | Reported Capex'!J$11*'Input | Inflation and Disc Rate'!I$15*(1+'Input | Inflation and Disc Rate'!I$20)^0.5 -> 304.1858461 | G9: ='Input | Reported Capex'!K$11*'Input | Inflation and Disc Rate'!J$15*(1+'Input | Inflation and Disc Rate'!J$20)^0.5 -> 301.0189019 | H9: ='Input | Reported Capex'!L$11*'Input | Inflation and Disc Rate'!K$15*(1+'Input | Inflation and Disc Rate'!K$20)^0.5 -> 293.1080307
C10: Actual capex | E10: ='Input | Reported Capex'!I20*(1+E$8)^0.5 -> 216.398975 | F10: ='Input | Reported Capex'!J20*(1+F$8)^0.5 -> 195.268962 | G10: ='Input | Reported Capex'!K20*(1+G$8)^0.5 -> 348.7210943 | H10: ='Input | Reported Capex'!L20*(1+H$8)^0.5 -> 409.235884
C11: Underspend | E11: =(E9-E10) -> 139.1893519 | F11: =(F9-F10) -> 108.916884 | G11: -47.7021924 | H11: -116.1278532
C12: Year 1 benefit
C13: Year 2 benefit | F13: =($E$11)*F$8 -> 7.523387328 | G13: =($E$11)*G$8 -> 8.36854306 | H13: =($E$11)*H$8 -> 8.244047827
C14: Year 3 benefit | G14: =($F$11)*G$8 -> 6.548458067 | H14: =($F$11)*H$8 -> 6.451039459
C15: Year 4 benefit | H15: =($G$11)*H$8 -> -2.825353738
C16: Year 5 benefit
C17: Total financing benefit | E17: =SUM(E12:E16) -> 0 | F17: =SUM(F12:F16) -> 7.523387328 | G17: 14.91700113 | H17: 11.86973355
C18: Discount factor (end of year) | E18: =F18*(1+F$8) -> 1.183608619 | F18: =G18*(1+G$8) -> 1.122913507 | G18: =H18*(1+H$8) -> 1.059229012 | H18: 1
C19: NPV underspend | E19: =E11*E18 -> 164.7457166 | F19: =F11*F18 -> 122.3042403 | G19: =G11*G18 -> -50.52754613 | H19: =H11*H18 -> -116.1278532
C20: NPV financing benefit | E20: =E17*E18 -> 0 | F20: =F17*F18 -> 8.448113252 | G20: =G17*G18 -> 15.80052037 | H20: =H17*H18 -> 11.86973355
C22: Regulatory period 2
C23: Year | D23: ='Input | General'!$D$17 -> 2019-20 | E23: ='Input | General'!$E$17 -> 2020-21 | F23: ='Input | General'!$F$17 -> 2021-22 | G23: ='Input | General'!$G$17 -> 2022-23 | H23: ='Input | General'!$H$17 -> 2023-24
C24: Discount rate: | D24: ='Input | Inflation and Disc Rate'!L$22 -> 0.05889469262 | E24: ='Input | Inflation and Disc Rate'!M$22 -> 0.0643466378 | F24: ='Input | Inflation and Disc Rate'!N$22 -> 0.06479866519 | G24: ='Input | Inflation and Disc Rate'!O$22 -> 0.06479866519 | H24: ='Input | Inflation and Disc Rate'!P$22 -> 0.06479866519
C25: Increase in forecast capex in regulatory period 2 attributable to capex deferred in regulatory period 1 | D25: ='Input | Reported Capex'!H28 -> 0 | E25: ='Input | Reported Capex'!I28 -> 0 | F25: ='Input | Reported Capex'!J28 -> 0 | G25: ='Input | Reported Capex'!K28 -> 0 | H25: ='Input | Reported Capex'!L28 -> 0
C26: Discount factor (middle of year 5) | D26: =1/(1+D24)^(0.5) -> 0.9717926594 | E26: =1/((1+E24)^(0.5)*(1+D24)) -> 0.9153889849 | F26: =1/((1+F24)^(0.5)*(1+E24)*(1+D24)) -> 0.8598652279 | G26: =1/((1+G24)^(0.5)*(1+F24)*(1+E24)*(1+D24)) -> 0.8075378529 | H26: =1/((1+H24)^(0.5)*(1+G24)*(1+F24)*(1+E24)*(1+D24)) -> 0.7583948772
C27: NPV of increase in forecast capex from deferred capex | D27: =D25*D26 -> 0 | E27: =E25*E26 -> 0 | F27: 0 | G27: 0 | H27: 0
C29: CESS calculation (post-adjustment)
C30: Total underspend (NPV) adjusted for deferrals | D30: =SUM(D19:H19)-SUM(D27:H27) -> 120.3945575
C31: Relevant sharing ratio | D31: 0.3
C32: Consumer share | D32: =(1-D31)*D30 -> 84.27619023
C33: NSP share | D33: =D31*D30 -> 36.11836724
C34: Total NSP financing benefit (NPV) | D34: =SUM(D20:H20) -> 36.11836717
C35: NPV of CESS payments (post-adjustment) | D35: =D33-D34 -> 7.051286843e-08
B37: Calc | Total CESS Payments
D39: ='Input | General'!D17 -> 2019-20 | E39: ='Input | General'!E17 -> 2020-21 | F39: ='Input | General'!F17 -> 2021-22 | G39: ='Input | General'!G17 -> 2022-23 | H39: ='Input | General'!H17 -> 2023-24
C40: =CONCATENATE("CESS Payment Per Year ($", 'Output | Models'!F4," million)") -> CESS Payment Per Year ($2018-19 million) | D40: =-PMT('Input | Inflation and Disc Rate'!L20,5,'Calc | CESS Revenue Increments'!$D$35) -> 1.578698786e-08 | E40: =-PMT('Input | Inflation and Disc Rate'!M20,5,'Calc | CESS Revenue Increments'!$D$35) -> 1.578698786e-08 | F40: =-PMT('Input | Inflation and Disc Rate'!N20,5,'Calc | CESS Revenue Increments'!$D$35) -> 1.578698786e-08 | G40: =-PMT('Input | Inflation and Disc Rate'!O20,5,'Calc | CESS Revenue Increments'!$D$35) -> 1.578698786e-08 | H40: =-PMT('Input | Inflation and Disc Rate'!P20,5,'Calc | CESS Revenue Increments'!$D$35) -> 1.578698786e-08
C42: =CONCATENATE("Total CESS Payment ($", 'Output | Models'!$F$4," million)") -> Total CESS Payment ($2018-19 million) | D42: =SUM(D40:H40) -> 7.89349393e-08
B44: End

Sheet Output | Models
B1: ='Input | General'!$B$1 -> Endeavour Energy 2019-24 Draft decision - Capital expenditure sharing scheme model | K1: Key: | L1: Input | M1: Internal Link
B2: Output | Models
B4: Inputs for Post Tax Revenue Model | E4: $millions | F4: 2018-19 | J4: Note. The dollar base should be consistent with the post tax revenue model
C6: Revenue Adjustments | D6: Source | E6: Unit | F6: Basis | J6: ='Calc | CESS Revenue Increments'!D39 -> 2019-20 | K6: ='Calc | CESS Revenue Increments'!E39 -> 2020-21 | L6: ='Calc | CESS Revenue Increments'!F39 -> 2021-22 | M6: ='Calc | CESS Revenue Increments'!G39 -> 2022-23 | N6: ='Calc | CESS Revenue Increments'!H39 -> 2023-24 | O6: Total
C8: CESS increments as per NER 6A.5.4(a)(5) | D8: Calc | CESS Revenue Increments | E8: =$E$4 -> $millions | F8: =$F$4 -> 2018-19 | J8: ='Calc | CESS Revenue Increments'!D40 -> 1.578698786e-08 | K8: ='Calc | CESS Revenue Increments'!E40 -> 1.578698786e-08 | L8: ='Calc | CESS Revenue Increments'!F40 -> 1.578698786e-08 | M8: ='Calc | CESS Revenue Increments'!G40 -> 1.578698786e-08 | N8: ='Calc | CESS Revenue Increments'!H40 -> 1.578698786e-08 | O8: =SUM(J8:N8) -> 7.89349393e-08
B11: End

Sheet Lookup | Tables
B1: ='Input | General'!$B$1 -> Endeavour Energy 2019-24 Draft decision - Capital expenditure sharing scheme model | I1: Key: | J1: Input | K1: Internal Link
B2: Lookup | Tables
B4: Unit Denominations
C6: Denominations | E6: Ref
C7: Dollars | E7: $dollars
C8: Thousands | E8: $000
C9: Millions | E9: $millions
C11: Actual | E11: Actual
C12: Estimate | E12: Estimate
C13: not applicable | E13: n/a
B16: Years
C18: =B16 -> Years | E18: Ref
C19: not applicable | E19: n/a
C20: nominal | E20: nominal
C21: 2007-08 | E21: 2007-08
C22: 2008-09 | E22: 2008-09
C23: 2009-10 | E23: 2009-10
C24: 2010-11 | E24: 2010-11
C25: 2011-12 | E25: 2011-12
C26: 2012-13 | E26: 2012-13
C27: 2013-14 | E27: 2013-14
C28: 2014-15 | E28: 2014-15
C29: 2015-16 | E29: 2015-16
C30: 2016-17 | E30: 2016-17
C31: 2017-18 | E31: 2017-18
C32: 2018-19 | E32: 2018-19
C33: 2019-20 | E33: 2019-20
C34: 2020-21 | E34: 2020-21
C35: 2021-22 | E35: 2021-22
C36: 2022-23 | E36: 2022-23
C37: 2023-24 | E37: 2023-24
B39: End
